fUSD/lending_fUSD_20240606
["ID","MTS","AMOUNT","RATE_DAILY","PERIOD"]
[328636932,1717648245357,-150.5,0.0002999,15]
[328636933,1717648245366,-150.5,0.0002999,15]
[328636934,1717648245375,-150.5,0.0002999,15]
[328636935,1717648245384,-150.5,0.0002999,15]
[328636936,1717648245393,-150.5,0.0002999,15]
[328636937,1717648245402,-150.5,0.0002999,15]
[328636938,1717648245411,-189.0,0.0002999,15]
[328636939,1717648245421,-150.5,0.0002999,15]
[328636940,1717648245430,-161.92,0.0002999,15]
[328636941,1717648245439,-201.39732544,0.0002999,2]
[328636942,1717648245448,-152.046995,0.00029997,7]
[328636943,1717648245457,-153.942985,0.00029997,7]
[328636944,1717648245466,-166.692209,0.00029997,7]
[328636945,1717648245475,-151.0,0.00029997,7]
[328636946,1717648245484,-156.362829,0.00029997,7]
[328636947,1717648245493,-9217.83463173,0.00029997,2]
[328636948,1717648245503,-155.17384802,0.00029998,2]
[328636949,1717648245511,-156.25169477,0.00029998,2]
[328636950,1717648245520,-155.4878975,0.00029998,2]
[328636951,1717648245530,-155.0,0.00029998,2]
[328636952,1717648245539,-1280.07294978,0.00029998,2]
[328636953,1717648245547,-2054.22929284,0.00029998,2]
[328636954,1717648245556,-5000.0,0.00029998,2]
[328636956,1717648245565,-789.74447447,0.00029998,2]
[328636957,1717648245574,-2819.00314972,0.00029998,2]
[328636958,1717648245583,-158.30150907,0.00029998,2]
[328636959,1717648245594,-165.83457501,0.00029998,2]
[328636960,1717648245604,-300.31819455,0.00029998,2]
[328636961,1717648245613,-268.39225568,0.00029998,2]
[328636962,1717648245623,-157.98355192,0.00029998,4]
[328636963,1717648245632,-325.73352634,0.00029998,2]
[328636964,1717648245641,-158.63345254,0.00029998,2]
[328636965,1717648245651,-155.37580712,0.00029998,2]
[328636966,1717648245665,-198.15323781,0.00029998,2]
[328636967,1717648245674,-187.56733128,0.00029998,2]
[328636968,1717648245683,-156.84962146,0.00029998,2]
[328636969,1717648245694,-155.0,0.00029998,2]
[328636970,1717648245703,-6789.47504739,0.00029998,2]
[328636972,1717648245712,-234.76270326,0.00029998,2]
[328636974,1717648245722,-711.64219338,0.00029998,2]
[328636975,1717648245732,-354.53147837,0.00029998,2]
[328636976,1717648245743,-171.806873,0.00029998,7]
[328636977,1717648245752,-171.806873,0.00029998,7]
[328636978,1717648245761,-151.0,0.00029998,7]
[328636979,1717648245770,-151.0,0.00029998,7]
[328636980,1717648245779,-151.0,0.00029998,7]
[328636981,1717648245788,-239.295362,0.00029998,7]
[328636982,1717648245798,-239.295362,0.00029998,7]
[328636983,1717648245807,-48046.73281769,0.0003,13]
[328636984,1717648245897,-1.60789804,0.00019618,2]
[328636985,1717648245989,-500.0,0.0001958,2]
[328636986,1717648245999,-998.39210196,0.00019618,2]
[328636987,1717648246008,-1363.36833476,0.00027615,2]
[328636988,1717648246253,-827.08447701,0.00017445,2]
[328636989,1717648246263,-500.0,0.0001958,2]
[328636990,1717648246274,-500.0,0.0001958,2]
[328636991,1717648246285,-500.0,0.0001958,2]
[328636992,1717648246295,-500.0,0.0001958,2]
[328636993,1717648246306,-500.0,0.0001958,2]
[328636994,1717648246318,-500.0,0.0001958,2]
[328636995,1717648246327,-2368.62671151,0.00027615,2]
[328636996,1717648246336,-420.0,0.0002906,5]
[328636997,1717648246345,-1553.16363713,0.0003,13]
[328636998,1717648246453,-500.0,0.0001958,2]
[328636999,1717648246462,-3194.02004874,0.0003,13]
[328637000,1717648246475,-3053.33113787,0.0003,13]
[328637006,1717649069940,-1720.93960507,0.00010998,2]
[328637007,1717649069970,-312.46550851,0.00010999,2]
[328637008,1717649069992,-259.1,0.00011,2]
[328637009,1717649070019,-150.0,0.00011799,2]
[328637010,1717649070044,-1557.49488642,0.000118,2]
[328637011,1717649070900,-4000.0,0.000118,2]
[328637012,1717649071430,-4000.0,0.000118,2]
[328637013,1717649071950,-4000.0,0.000118,2]
[328637014,1717649072504,-4000.0,0.000118,2]
[328637015,1717649073011,-4000.0,0.000118,2]
[328637016,1717649073505,-4000.0,0.000118,2]
[328637017,1717649074016,-4000.0,0.000118,2]
[328637018,1717649074716,-4000.0,0.000118,2]
[328637019,1717649075210,-4000.0,0.000118,2]
[328637020,1717649076036,-4000.0,0.000118,2]
[328637021,1717649082316,-4073.0,0.000118,2]
[328637025,1717649351118,-170.35382184,0.00010499,2]
[328637026,1717649351139,-163.95,0.00010569,2]
[328637027,1717649351159,-664.0,0.00011698,2]
[328637028,1717649351179,-1635.0504,0.00011699,2]
[328637029,1717649351199,-150.0,0.00011799,2]
[328637030,1717649351220,-1100.06618608,0.000118,2]
[328637033,1717649361125,-15521.00331248,0.000118,2]
[328637034,1717649361146,-4757.51990888,0.000118,2]
[328637035,1717649361167,-72731.05518837,0.000118,2]
[328637036,1717649361190,-210.99517928,0.000118,2]
[328637037,1717649361210,-20260.85855017,0.000118,2]
[328637038,1717649374242,136.8521731,0.000118,2]
[328637041,1717649432128,-52096.05334146,0.000118,2]
[328637042,1717649432140,-20260.85855017,0.000118,2]
[328637043,1717649432152,-4581.62931203,0.000118,2]
[328637044,1717649432162,-210.0,0.00012979,2]
[328637046,1717649432171,-171.03,0.00012986,2]
[328637048,1717649432180,-893.77024397,0.00013,2]
[328637050,1717649432190,-23900.0,0.00013211,2]
[328637052,1717649432200,-1300.08768272,0.00013298,2]
[328637053,1717649432209,-300.0,0.000133,4]
[328637054,1717649432219,-700.0,0.000134,4]
[328637055,1717649432228,-898.45,0.00013413,2]
[328637056,1717649432238,-1100.0,0.000135,4]
[328637057,1717649432248,-1500.0,0.000136,4]
[328637058,1717649432258,-1900.0,0.000137,5]
[328637059,1717649432268,-14675.4039,0.000137,2]
[328637060,1717649432278,-37685.8633,0.000138,2]
[328637061,1717649432288,-300.0,0.000138,5]
[328637062,1717649432299,-1000.0,0.000138,2]
[328637063,1717649432310,-1401.53120434,0.000138,2]
[328637064,1717649432320,-1401.5312043,0.00013814,2]
[328637065,1717649432330,-1401.5312043,0.00013829,2]
[328637066,1717649432339,-1401.5312043,0.00013843,2]
[328637067,1717649432349,-1401.5312043,0.00013857,2]
[328637068,1717649432359,-253.58907777,0.00013858,2]
[328637069,1717649432368,-150.0,0.00013863,2]
[328637070,1717649432377,-1401.5312043,0.00013871,2]
[328637071,1717649432387,-1401.5312043,0.00013886,2]
[328637072,1717649432396,-173.19217151,0.000139,2]
[328637073,1717649432405,-155.8198721,0.000139,2]
[328637074,1717649432414,-142086.8521,0.000139,2]
[328637075,1717649432424,-1000.0,0.000139,2]
[328637076,1717649432434,-751.9104142,0.000139,2]
[328637077,1717649432444,-300.0,0.000139,5]
[328637078,1717649432453,-329.38061448,0.000139,2]
[328637079,1717649432462,-1401.5312043,0.000139,2]
[328637080,1717649432472,-1527.81660406,0.000139,2]
[328637081,1717649432481,-860.10345629,0.000139,2]
[328637082,1717649432491,-201.39732545,0.0001399,2]
[328637083,1717649432500,-152.19,0.0001399,2]
[328637084,1717649432510,-152.19,0.0001399,2]
[328637085,1717649432520,-152.19,0.0001399,2]
[328637086,1717649432529,-152.19,0.0001399,2]
[328637087,1717649432538,-152.19,0.0001399,2]
[328637088,1717649432548,-152.19,0.0001399,2]
[328637089,1717649432557,-152.19,0.0001399,2]
[328637090,1717649432567,-152.19,0.0001399,2]
[328637091,1717649432576,-152.19,0.0001399,2]
[328637092,1717649432585,-152.19,0.0001399,2]
[328637093,1717649432595,-152.19,0.0001399,2]
[328637094,1717649432604,-152.19,0.0001399,2]
[328637095,1717649432613,-152.19,0.0001399,2]
[328637096,1717649432622,-490.15604963,0.00013998,2]
[328637097,1717649432633,-156.59568569,0.00013998,2]
[328637098,1717649432642,-791.96732947,0.00013998,2]
[328637099,1717649432651,-155.0,0.00013998,2]
[328637100,1717649432660,-155.0,0.00013998,2]
[328637101,1717649432670,-155.0,0.00013998,2]
[328637102,1717649432679,-155.0,0.00013998,2]
[328637103,1717649432690,-719.96757642,0.00013998,2]
[328637104,1717649432700,-189.34506203,0.00013998,2]
[328637106,1717649432710,-592.02358249,0.00013998,2]
[328637108,1717649432719,-548.08114131,0.00013998,2]
[328637110,1717649432730,-205.11335806,0.00013998,2]
[328637112,1717649432740,-499.99,0.00013998,2]
[328637114,1717649432750,-3067.94232697,0.00013998,2]
[328637116,1717649432759,-719.55136828,0.00013998,2]
[328637117,1717649432768,-155.0,0.00013999,2]
[328637119,1717649432778,-222.41294777,0.00013999,2]
[328637121,1717649432788,-638.95398189,0.00013999,2]
[328637123,1717649432797,-1344241.7769697,0.00014,2]
[328637126,1717649432809,-221181.65928962,0.00014,2]
[328637139,1717649432986,-9177.94540166,0.00014,2]
[328637141,1717649438019,-600.0,0.000138,2]
[328637143,1717649438242,-400.0,0.000138,2]
[328637144,1717649438252,-724795.46902186,0.00014,2]
[328637145,1717649438275,-3306.88676764,0.00014,2]
[328637146,1717649438307,-1961568.2819562,0.00014,2]
[328637147,1717649438423,-3210.79791008,0.00014,2]
[328637151,1717649440754,-27353.33808669,0.00014,2]
[328637152,1717649441497,-1555.73494035,0.00014,2]
[328637153,1717649441689,-4734.03712392,0.00014,2]
[328637154,1717649441701,-939.63137312,0.00014,2]
[328637159,1717649443297,-1000.0,0.00014,2]
[328637164,1717649443490,-1097503.59672177,0.00014,2]
[328637165,1717649443599,-227814.34005583,0.00014,2]
[328637166,1717649443628,-1889.08592415,0.00014,2]
[328637167,1717649443659,-95000.85952901,0.00014,2]
[328637173,1717649446329,-5286.04681753,0.000118,2]
[328637174,1717649446341,-407.49653993,0.000139,2]
[328637175,1717649446440,-1101.61040952,0.000139,2]
[328637176,1717649446449,-787.51029049,0.00014,2]
[328637241,1717650332838,172.23,0.00010139,2]
[328637258,1717650550139,-155.0,0.00010349,2]
[328637259,1717650550162,-2726.38318717,0.00011024,2]
[328637260,1717650550185,-749.54,0.00011035,2]
[328637261,1717650550207,-167.99,0.00011293,2]
[328637262,1717650550229,-150.0,0.00011698,2]
[328637263,1717650550250,-150.0,0.00011698,2]
[328637264,1717650550271,-32564.6067822,0.00011699,2]
[328637265,1717650550294,-6707.114,0.000117,2]
[328637274,1717650602495,49.5184365,0.00012539,2]
[328637282,1717650632344,-303.04088475,0.00012539,2]
[328637283,1717650632354,-19548.08065518,0.00012638,2]
[328637284,1717650632363,-3854.92015034,0.00012638,2]
[328637285,1717650632376,-15693.16050484,0.00012638,2]
[328637286,1717650632385,-19548.08065518,0.00012638,2]
[328637287,1717650632395,-2427.6,0.00012639,2]
[328637288,1717650632407,-150.0,0.00012639,2]
[328637289,1717650632417,-23900.0,0.0001264,2]
[328637290,1717650632426,-707.13,0.0001273,2]
[328637291,1717650632436,-461.82,0.0001273,2]
[328637292,1717650632446,-1491.04,0.0001273,2]
[328637293,1717650632457,-1283.02,0.00012787,2]
[328637294,1717650632470,-250.0,0.00012823,2]
[328637295,1717650632480,-210.0,0.00012868,2]
[328637296,1717650632489,-210.0,0.00012868,2]
[328637297,1717650632500,-1608.2,0.00012926,2]
[328637298,1717650632509,-250.0,0.00013014,2]
[328637299,1717650632519,-499.99,0.00013014,2]
[328637300,1717650632528,-8406.92,0.00013069,2]
[328637301,1717650632540,-435.25268962,0.00013298,2]
[328637302,1717650632549,-749.54,0.00013299,2]
[328637303,1717650632559,-160.61,0.00013355,2]
[328637304,1717650632568,-177.55,0.00013379,2]
[328637305,1717650632578,-160.61,0.00013587,2]
[328637306,1717650632588,-204.14,0.00013699,2]
[328637307,1717650632597,-586.8,0.00013699,2]
[328637308,1717650632606,-200.0,0.00013699,2]
[328637309,1717650632615,-1000.0,0.000137,2]
[328637310,1717650632625,-4306.9343,0.000137,2]
[328637311,1717650632635,-1000.0,0.000137,2]
[328637312,1717650632645,-235.55230443,0.00013798,2]
[328637313,1717650632654,-155.40277861,0.00013798,2]
[328637314,1717650632664,-155.0,0.00013798,2]
[328637315,1717650632674,-453.19384766,0.00013798,2]
[328637316,1717650632683,-241.57981572,0.00013798,2]
[328637317,1717650632693,-217.94215905,0.00013798,2]
[328637318,1717650632702,-155.87030942,0.00013798,2]
[328637319,1717650632712,-159.06838526,0.00013798,2]
[328637320,1717650632721,-422.88216961,0.00013798,2]
[328637321,1717650632731,-234.70114228,0.00013798,2]
[328637322,1717650632740,-1185.62029144,0.00013798,2]
[328637323,1717650632750,-226.65319436,0.00013798,2]
[328637324,1717650632759,-1246.94588044,0.00013798,2]
[328637325,1717650632769,-155.0,0.00013799,2]
[328637326,1717650632779,-156.08892722,0.00013799,2]
[328637327,1717650632788,-212.1908023,0.00013799,2]
[328637329,1717650632797,-489.81743088,0.00013799,2]
[328637331,1717650632806,-19118.65660328,0.00013799,2]
[328637333,1717650632815,-500.0,0.000138,2]
[328637335,1717650632825,-496.8337,0.000138,2]
[328637336,1717650632835,-100000.0,0.000138,2]
[328637338,1717650632844,-9681.5374,0.000138,2]
[328637341,1717650632853,-41764.7326,0.000138,2]
[328637344,1717650632862,-2877.4283,0.000138,2]
[328637347,1717650632872,-12106.6915,0.000138,2]
[328637350,1717650632881,-16042.7857,0.000138,2]
[328637353,1717650632890,-3086.23952343,0.000138,2]
[328637356,1717650632898,-329.38061444,0.000138,2]
[328637358,1717650632908,-167.75806264,0.000138,2]
[328637361,1717650632917,-160.61,0.00013819,2]
[328637364,1717650632926,-1597.44928,0.0001386,2]
[328637367,1717650632934,-12038.32551637,0.000139,2]
[328637370,1717650632944,-245000.0,0.000139,2]
[328637373,1717650632952,-295.5862,0.000139,2]
[328637376,1717650632961,-165.57082688,0.000139,2]
[328637379,1717650632970,-3855.9229,0.000139,2]
[328637382,1717650632980,-175.20312856,0.000139,2]
[328637384,1717650632988,-170.18209612,0.000139,2]
[328637386,1717650632998,-172.04624233,0.000139,2]
[328637388,1717650633007,-3272.7917,0.000139,2]
[328637390,1717650633016,-215.09336921,0.000139,2]
[328637392,1717650633025,-167.75806264,0.000139,2]
[328637394,1717650633034,-1641.7278618,0.000139,2]
[328637395,1717650633044,-382.13509686,0.0001397,2]
[328637397,1717650633053,-179.52164024,0.0001399,2]
[328637399,1717650633062,-152.11,0.0001399,2]
[328637401,1717650633072,-617.61775992,0.00013998,2]
[328637403,1717650633081,-391276.04484301,0.00014,2]
[328637406,1717650633094,-3555.64828,0.00014,2]
[328637424,1717650633284,-29013.2056656,0.00014,2]
[328637425,1717650633296,-6271.32552108,0.00014,2]
[328637426,1717650633322,-8551.05622906,0.00014,2]
[328637427,1717650633338,-14220.8,0.00014,2]
[328637901,1717650638378,-167.99,0.00013177,2]
[328637903,1717650638387,-2781.72840916,0.000139,2]
[328637905,1717650638396,-1945.05061519,0.00014,2]
[328637908,1717650638413,-2332.30374178,0.00014,2]
[328637923,1717650638556,-724795.46902186,0.00014,2]
[328637925,1717650638567,-785.60005,0.00014,2]
[328637927,1717650638578,-1006.28438163,0.00014,2]
[328638031,1717650641215,-82778.95214219,0.00014,2]
[328638032,1717650642251,-2216.91129007,0.00014,2]
[328638035,1717650643665,-2194702.57392856,0.00014,2]
[328638036,1717650643674,-1137003.39509031,0.00014,2]
[328638037,1717650643683,-160.61,0.00014051,2]
[328638038,1717650643693,-9146.0,0.00014094,2]
[328638039,1717650643702,-293.0,0.00014154,2]
[328638040,1717650643712,-204.14,0.00014384,2]
[328638041,1717650643721,-209.78,0.00014528,2]
[328638042,1717650643731,-157.50478322,0.00015,2]
[328638043,1717650643740,-155.26878002,0.00015,2]
[328638044,1717650643750,-155.0,0.00015,2]
[328638045,1717650643760,-216.99201886,0.00015,2]
[328638046,1717650643769,-618.8768531,0.00015,2]
[328638047,1717650643779,-200.0,0.00015,2]
[328638048,1717650643788,-204.14,0.00015068,2]
[328638049,1717650643797,-300.0,0.00015068,2]
[328638050,1717650643806,-172.23,0.00015208,2]
[328638051,1717650643815,-12038.32551636,0.00015355,2]
[328638052,1717650643824,-1608.2,0.00015665,2]
[328638053,1717650643834,-169.74,0.00015723,2]
[328638054,1717650643843,-204.14,0.00015753,2]
[328638055,1717650643852,-167.0,0.00015831,2]
[328638056,1717650643862,-182.2,0.00015831,2]
[328638057,1717650643871,-3086.23952337,0.000161,2]
[328638058,1717650643881,-9999.99,0.00016116,2]
[328638059,1717650643891,-167.0,0.00016354,2]
[328638060,1717650643900,-1597.44928,0.0001636,2]
[328638061,1717650643909,-204.14,0.00016438,2]
[328638062,1717650643918,-300.0,0.00016438,2]
[328638063,1717650643927,-1693.68,0.00016438,2]
[328638064,1717650643936,-1805.05840051,0.000165,2]
[328638065,1717650643946,-5012.94968191,0.00016809,2]
[328638066,1717650644001,-7025.37583445,0.00016809,2]
[328638067,1717650644010,-167.0,0.00016876,2]
[328638068,1717650644019,-24505.61132146,0.0001707,2]
[328638069,1717650644031,-4202.51167854,0.0001707,2]
[328638070,1717650644042,-290.0,0.0001707,2]
[328638071,1717650644051,-5151.0,0.0001707,2]
[328638072,1717650644060,-5778.0,0.0001707,2]
[328638073,1717650644070,-1064.0,0.00017154,2]
[328638074,1717650644079,-1020.0,0.00017154,2]
[328638075,1717650644088,-150.0,0.0001718,2]
[328638076,1717650644098,-151.0,0.000173,2]
[328638077,1717650644107,-150.0,0.000173,2]
[328638078,1717650644116,-150.0,0.000173,2]
[328638079,1717650644126,-150.0,0.000173,2]
[328638080,1717650644135,-152.604,0.000173,2]
[328638081,1717650644144,-156.518,0.000173,2]
[328638082,1717650644153,-167.964,0.000173,2]
[328638083,1717650644163,-286.671,0.000173,2]
[328638085,1717650644172,-257.824,0.000173,2]
[328638087,1717650644181,-160.579,0.000173,2]
[328638089,1717650644190,-183.866,0.000173,2]
[328638090,1717650644199,-191.781,0.000173,2]
[328638092,1717650644208,-150.691,0.000173,2]
[328638094,1717650644218,-150.202,0.000173,2]
[328638096,1717650644227,-977.0,0.000173,2]
[328638098,1717650644236,-977.0,0.000173,2]
[328638099,1717650644246,-357.0,0.000173,2]
[328638100,1717650644255,-1267.0,0.000173,2]
[328638101,1717650644264,-1830.0,0.000173,2]
[328638102,1717650644273,-614.0,0.000173,2]
[328638103,1717650644283,-1649.0,0.000173,2]
[328638117,1717650644400,-808.0,0.000173,2]
[328638120,1717650644453,-2403.0,0.000173,2]
[328638123,1717650644466,-446.0,0.000173,2]
[328638124,1717650644475,-150.0,0.000173,2]
[328638126,1717650644484,-165.0,0.000173,2]
[328638128,1717650644493,-1304.0,0.000173,2]
[328638130,1717650644503,-150.0,0.000173,2]
[328638132,1717650644513,-216.0,0.000173,2]
[328638134,1717650644523,-545.0,0.000173,2]
[328638136,1717650644532,-3173.0,0.000173,2]
[328638138,1717650644544,-2123.0,0.000173,2]
[328638141,1717650644554,-167.0,0.00017399,2]
[328638143,1717650644564,-250.0,0.00017728,2]
[328638145,1717650644573,-167.0,0.00017921,2]
[328638147,1717650644582,-649.34168046,0.00018,2]
[328638149,1717650644591,-168.602,0.00018076,2]
[328638151,1717650644601,-2260.23804581,0.00018078,2]
[328638152,1717650644610,-1000.0,0.00018154,2]
[328638154,1717650644620,-168.602,0.00018158,2]
[328638156,1717650644629,-168.602,0.0001824,2]
[328638158,1717650644639,-12038.32551636,0.00018264,2]
[328638160,1717650644648,-350.0,0.00018276,2]
[328638162,1717650644658,-168.602,0.00018323,2]
[328638164,1717650644667,-3086.23952337,0.000184,2]
[328638166,1717650644676,-1608.2,0.00018405,2]
[328638168,1717650644685,-168.602,0.00018407,2]
[328638170,1717650644695,-8924.34629126,0.0001844,2]
[328638173,1717650644707,-24760.42792449,0.0001844,2]
[328638175,1717650644716,-167.0,0.00018444,2]
[328638177,1717650644726,-182.2,0.00018444,2]
[328638179,1717650644735,-168.602,0.00018492,2]
[328638181,1717650644745,-168.602,0.00018577,2]
[328638183,1717650644754,-450.0,0.00018824,2]
[328638185,1717650644763,-1597.44929,0.0001886,2]
[328638187,1717650644773,-155.69313599,0.00019,2]
[328638189,1717650644783,-412.69044101,0.00019,2]
[328638191,1717650644792,-173.6,0.00019085,2]
[328638193,1717650644802,-329.38061444,0.00019167,2]
[328638195,1717650644811,-213.11590925,0.00019178,2]
[328638197,1717650644820,-500.0,0.00019178,2]
[328638199,1717650644830,-500.0,0.00019178,2]
[328638201,1717650644839,-223.95363356,0.00019178,2]
[328638203,1717650644848,-569.61131064,0.00019178,2]
[328638205,1717650644857,-513.76709541,0.00019178,2]
[328638207,1717650644867,-500.0,0.00019178,2]
[328638209,1717650644876,-461.46516519,0.00019178,2]
[328638211,1717650644885,-173.11948159,0.00019178,2]
[328638213,1717650644894,-586.8,0.00019178,2]
[328638215,1717650644904,-3141.8,0.00019178,2]
[328638217,1717650644913,-50728.45,0.00019178,2]
[328638219,1717650644923,-832.87,0.000192,2]
[328638221,1717650644932,-1000.27,0.000192,2]
[328638223,1717650644941,-3891.02501567,0.000192,2]
[328638225,1717650644951,-550.0,0.00019372,2]
[328638227,1717650644960,-150.5,0.00019658,15]
[328638229,1717650644970,-150.5,0.00019668,15]
[328638231,1717650644979,-218.0,0.00019688,15]
[328638233,1717650644988,-150.5,0.00019698,15]
[328638235,1717650644998,-150.5,0.00019708,15]
[328638237,1717650645007,-150.5,0.00019708,15]
[328638239,1717650645016,-12038.32551636,0.00019718,2]
[328638241,1717650645025,-167.99,0.00019765,2]
[328638243,1717650645035,-604.07445159,0.0001992,2]
[328638244,1717650645044,-250.25569872,0.00019998,2]
[328638245,1717650645054,-1010.86316582,0.0002,2]
[328638246,1717650645063,-6258.42600459,0.0002,2]
[328638247,1717650645072,-864.25440509,0.0002,2]
[328638248,1717650645082,-548.88488712,0.0002,2]
[328638249,1717650645092,-2839.0,0.0002,2]
[328638250,1717650645101,-1280.66422857,0.0002,2]
[328638251,1717650645111,-155.69462089,0.0002,2]
[328638252,1717650645121,-262.92188836,0.0002,2]
[328638253,1717650645130,-305.55333672,0.0002,2]
[328638254,1717650645139,-227.14261997,0.0002,2]
[328638255,1717650645149,-156.76755005,0.0002,2]
[328638256,1717650645158,-1779.87235949,0.0002,2]
[328638257,1717650645169,-298.65683462,0.0002,2]
[328638258,1717650645178,-155.46593818,0.0002,2]
[328638259,1717650645188,-290.0,0.0002007,2]
[328638260,1717650645197,-5151.0,0.0002007,2]
[328638261,1717650645206,-5778.0,0.0002007,2]
[328638262,1717650645215,-173.6,0.00020077,2]
[328638263,1717650645224,-7600.0,0.0002009,2]
[328638264,1717650645233,-226.60187199,0.000201,2]
[328638265,1717650645242,-1064.0,0.00020154,2]
[328638266,1717650645252,-150.0,0.000203,2]
[328638267,1717650645261,-977.0,0.000203,2]
[328638268,1717650645270,-969.144,0.000203,2]
[328638269,1717650645279,-1830.0,0.000203,2]
[328638270,1717650645288,-1437.632,0.000203,2]
[328638271,1717650645298,-808.0,0.000203,2]
[328638272,1717650645307,-2403.0,0.000203,2]
[328638273,1717650645316,-445.0,0.000203,2]
[328638274,1717650645325,-165.0,0.000203,2]
[328638275,1717650645334,-1304.0,0.000203,2]
[328638276,1717650645343,-150.0,0.000203,2]
[328638277,1717650645352,-216.0,0.000203,2]
[328638278,1717650645361,-545.0,0.000203,2]
[328638279,1717650645370,-3167.0,0.000203,2]
[328638280,1717650645379,-2123.0,0.000203,2]
[328638281,1717650645388,-774.0,0.000204,2]
[328638282,1717650645398,-1000.0,0.00020424,2]
[328638283,1717650645407,-19979.65,0.00020548,2]
[328638284,1717650645418,-3086.23952337,0.000207,2]
[328638285,1717650645426,-3717.0,0.000208,3]
[328638286,1717650645435,-173.6,0.0002107,3]
[328638287,1717650645444,-12038.32551636,0.00021173,2]
[328638288,1717650645454,-1597.44928,0.0002136,2]
[328638289,1717650645467,-454.23,0.0002137,2]
[328638290,1717650645476,-2494.06,0.0002137,2]
[328638291,1717650645486,-11734.0,0.000216,5]
[328638292,1717650645495,-500.0,0.00021823,2]
[328638293,1717650645507,-200.0,0.00021823,2]
[328638294,1717650645518,-329.38061444,0.0002185,2]
[328638295,1717650645527,-165.57082688,0.000219,2]
[328638296,1717650645538,-170.1820961,0.000219,2]
[328638297,1717650645550,-751.62637866,0.000219,2]
[328638298,1717650645559,-2781.72840916,0.000219,2]
[328638299,1717650645569,-331.98,0.00021918,2]
[328638300,1717650645579,-234.67,0.00021918,2]
[328638301,1717650645591,-250.0,0.00021918,2]
[328638302,1717650645601,-789.19827628,0.00022,2]
[328638303,1717650645612,-174.0,0.00022,2]
[328638304,1717650645623,-173.6,0.00022062,3]
[328638305,1717650645633,-29999.99,0.00022562,2]
[328638306,1717650645642,-9999.99,0.00022562,2]
[328638307,1717650645652,-19999.99,0.00022562,2]
[328638308,1717650645662,-29999.99,0.00022562,2]
[328638309,1717650645671,-4895.99,0.00022562,2]
[328638310,1717650645680,-4417.99,0.00022562,2]
[328638311,1717650645690,-12038.32551636,0.00022627,2]
[328638312,1717650645700,-1000.0,0.00022693,2]
[328638313,1717650645709,-403.42300542,0.00023,2]
[328638314,1717650645720,-3086.23952337,0.00023,2]
[328638315,1717650645729,-173.6,0.00023054,3]
[328638316,1717650645741,-290.0,0.0002307,2]
[328638317,1717650645750,-5151.0,0.0002307,2]
[328638318,1717650645760,-635.696,0.0002307,2]
[328638319,1717650645770,-1064.0,0.00023154,2]
[328638320,1717650645779,-977.0,0.000233,2]
[328638321,1717650645788,-494.075,0.000233,2]
[328638322,1717650645798,-808.0,0.000233,2]
[328638323,1717650645807,-2389.0,0.000233,2]
[328638324,1717650645816,-1003.274,0.000233,2]
[328638325,1717650645825,-545.0,0.000233,2]
[328638326,1717650645836,-2123.0,0.000233,2]
[328638327,1717650645845,-800.0,0.00023342,2]
[328638328,1717650645854,-1170.68966613,0.00023572,4]
[328638329,1717650645863,-169.74,0.00023585,2]
[328638330,1717650645873,-1597.44928,0.0002386,2]
[328638331,1717650645882,-264.00565432,0.00024,2]